[Event "Titled Tuesday Blitz April 18 Late 2023"]
[White "Hakobyan, Aram"]
[Black "Sabuk, Piotr"]
[WhiteFideId "13306677"]
[BlackFideId "1137565"]
[WhiteElo "2584"]
[BlackElo "2298"]
[Result "1-0"]
[Round "08"]
[TimeControl "180+2"]
[Date "2023.04.18"]
[WhiteClock "0:02:13"]
[BlackClock "0:01:16"]

1. d4 {[%clk 0:03:00]}  Nf6 {[%clk 0:02:59]} 2. c4 {[%clk 0:03:01]}  e6 {[%clk 0:02:59]} 3. Nc3 {[%clk 0:03:01]}  Bb4 {[%clk 0:02:59]} 4. e3 {[%clk 0:03:02]}  O-O {[%clk 0:02:58]} 5. a3 {[%clk 0:03:02]}  Bxc3+ {[%clk 0:02:56]} 6. bxc3 {[%clk 0:03:03]}  c5 {[%clk 0:02:55]} 7. Ne2 {[%clk 0:03:04]}  b6 {[%clk 0:02:50]} 8. Ng3 {[%clk 0:03:04]}  Bb7 {[%clk 0:02:40]} 9. Bd3 {[%clk 0:03:04]}  Bxg2 {[%clk 0:02:25]} 10. Rg1 {[%clk 0:03:04]}  Bb7 {[%clk 0:02:18]} 11. e4 {[%clk 0:03:03]}  cxd4 {[%clk 0:02:10]} 12. cxd4 {[%clk 0:02:52]}  d5 {[%clk 0:01:48]} 13. e5 {[%clk 0:02:45]}  Ne4 {[%clk 0:01:47]} 14. Bxe4 {[%clk 0:02:33]}  dxe4 {[%clk 0:01:47]} 15. Nh5 {[%clk 0:02:34]}  Qh4 {[%clk 0:01:37]} 16. Rxg7+ {[%clk 0:02:14]}  Kh8 {[%clk 0:01:37]} 17. Bg5 {[%clk 0:02:15]}  Qxh2 {[%clk 0:01:26]} 18. Bf6 {[%clk 0:02:14]}  Nd7 {[%clk 0:01:17]} 19. Rg8+ {[%clk 0:02:12]}  Kxg8 {[%clk 0:01:16]} 20. Qg4# {[%clk 0:02:13]} 1-0


[Site "https://www.chess.com"]

[Event "Titled Tuesday Blitz April 18 Late 2023"]
[White "Vivekananthan, Anish"]
[Black "Duda, Jan-Krzysztof"]
[WhiteFideId "2090775"]
[BlackFideId "1170546"]
[WhiteElo "2838"]
[BlackElo "2790"]
[Result "0-1"]
[Round "08"]
[TimeControl "180+2"]
[Date "2023.04.18"]
[WhiteClock "0:00:01"]
[BlackClock "0:00:07"]

1. d4 {[%clk 0:02:59]}  f5 {[%clk 0:02:57]} 2. Nf3 {[%clk 0:02:53]}  Nf6 {[%clk 0:02:58]} 3. c4 {[%clk 0:02:53]}  d6 {[%clk 0:02:57]} 4. g3 {[%clk 0:02:53]}  g6 {[%clk 0:02:57]} 5. Bg2 {[%clk 0:02:53]}  Bg7 {[%clk 0:02:58]} 6. O-O {[%clk 0:02:54]}  O-O {[%clk 0:02:58]} 7. Nc3 {[%clk 0:02:54]}  c6 {[%clk 0:02:59]} 8. b3 {[%clk 0:02:40]}  a5 {[%clk 0:02:57]} 9. Bb2 {[%clk 0:02:38]}  Na6 {[%clk 0:02:54]} 10. Qc2 {[%clk 0:02:29]}  Bd7 {[%clk 0:02:49]} 11. Rfe1 {[%clk 0:02:25]}  b5 {[%clk 0:02:47]} 12. a3 {[%clk 0:02:21]}  Rb8 {[%clk 0:02:38]} 13. Nd2 {[%clk 0:02:18]}  Nh5 {[%clk 0:02:06]} 14. Bxc6 {[%clk 0:02:05]}  Bxc6 {[%clk 0:02:04]} 15. cxb5 {[%clk 0:02:06]}  Rxb5 {[%clk 0:01:58]} 16. Nxb5 {[%clk 0:01:57]}  Bxb5 {[%clk 0:01:58]} 17. e3 {[%clk 0:01:51]}  Nf6 {[%clk 0:01:46]} 18. Rac1 {[%clk 0:01:48]}  Nd5 {[%clk 0:01:45]} 19. Nc4 {[%clk 0:01:33]}  Bh6 {[%clk 0:01:22]} 20. Rcd1 {[%clk 0:01:20]}  Nac7 {[%clk 0:00:55]} 21. Nxa5 {[%clk 0:01:15]}  Ne6 {[%clk 0:00:55]} 22. Nc4 {[%clk 0:01:02]}  Ng5 {[%clk 0:00:55]} 23. Qe2 {[%clk 0:00:46]}  Qa8 {[%clk 0:00:38]} 24. h4 {[%clk 0:00:46]}  Ne4 {[%clk 0:00:32]} 25. Qc2 {[%clk 0:00:41]}  g5 {[%clk 0:00:30]} 26. hxg5 {[%clk 0:00:34]}  Nxg5 {[%clk 0:00:31]} 27. Qe2 {[%clk 0:00:33]}  Nf6 {[%clk 0:00:16]} 28. d5 {[%clk 0:00:27]}  Bg7 {[%clk 0:00:08]} 29. a4 {[%clk 0:00:24]}  Ba6 {[%clk 0:00:06]} 30. Kh2 {[%clk 0:00:17]}  Ng4+ {[%clk 0:00:05]} 31. Kg2 {[%clk 0:00:17]}  Bxc4 {[%clk 0:00:06]} 32. bxc4 {[%clk 0:00:14]}  Qxa4 {[%clk 0:00:05]} 33. Bxg7 {[%clk 0:00:14]}  Kxg7 {[%clk 0:00:06]} 34. Ra1 {[%clk 0:00:13]}  Qe8 {[%clk 0:00:06]} 35. Rh1 {[%clk 0:00:12]}  Kg6 {[%clk 0:00:05]} 36. Ra7 {[%clk 0:00:08]}  h5 {[%clk 0:00:06]} 37. Qb2 {[%clk 0:00:06]}  Ne4 {[%clk 0:00:05]} 38. Qb7 {[%clk 0:00:04]}  Nexf2 {[%clk 0:00:04]} 39. Re1 {[%clk 0:00:04]}  Nd3 {[%clk 0:00:04]} 40. Re2 {[%clk 0:00:04]}  Rf7 {[%clk 0:00:04]} 41. Qb3 {[%clk 0:00:02]}  Nc5 {[%clk 0:00:04]} 42. Qb2 {[%clk 0:00:03]}  Qf8 {[%clk 0:00:04]} 43. Qd4 {[%clk 0:00:03]}  Qg7 {[%clk 0:00:04]} 44. Qf4 {[%clk 0:00:02]}  Qe5 {[%clk 0:00:04]} 45. Kf3 {[%clk 0:00:02]}  Nd3 {[%clk 0:00:04]} 46. Qxe5 {[%clk 0:00:02]}  Ngxe5+ {[%clk 0:00:04]} 47. Kg2 {[%clk 0:00:02]}  Nxc4 {[%clk 0:00:04]} 48. Ra8 {[%clk 0:00:03]}  Nb6 {[%clk 0:00:04]} 49. Rg8+ {[%clk 0:00:04]}  Kh7 {[%clk 0:00:04]} 50. Rb8 {[%clk 0:00:05]}  Nxd5 {[%clk 0:00:04]} 51. e4 {[%clk 0:00:05]}  fxe4 {[%clk 0:00:04]} 52. Rxe4 {[%clk 0:00:06]}  Ne5 {[%clk 0:00:05]} 53. Rh4 {[%clk 0:00:04]}  Ne3+ {[%clk 0:00:05]} 54. Kh3 {[%clk 0:00:03]}  Rf5 {[%clk 0:00:05]} 55. Re8 {[%clk 0:00:02]}  Ng6 {[%clk 0:00:05]} 56. Re4 {[%clk 0:00:02]}  Ng4 {[%clk 0:00:06]} 57. Kg2 {[%clk 0:00:02]}  Rf2+ {[%clk 0:00:06]} 58. Kg1 {[%clk 0:00:02]}  Rf7 {[%clk 0:00:06]} 59. Rd8 {[%clk 0:00:01]}  Kh6 {[%clk 0:00:06]} 60. Rd4 {[%clk 0:00:01]}  Kg5 {[%clk 0:00:06]} 61. Re4 {[%clk 0:00:02]}  Rf3 {[%clk 0:00:07]} 62. Kg2 {[%clk 0:00:01]}  Rf2+ {[%clk 0:00:07]} 63. Kg1 {[%clk 0:00:02]}  Rd2 {[%clk 0:00:07]} 64. Rg8 {[%clk 0:00:02]}  Kf5 {[%clk 0:00:07]} 65. Ra4 {[%clk 0:00:02]}  N4e5 {[%clk 0:00:07]} 66. Rb4 {[%clk 0:00:01]}  d5 {[%clk 0:00:07]} 67. Kf1 {[%clk 0:00:01]}  d4 {[%clk 0:00:07]} 0-1


[Site "https://www.chess.com"]

[Event "Titled Tuesday Blitz April 18 Late 2023"]
[White "Baskakov, Egor"]
[Black "Bortnyk, Olexandr"]
[WhiteFideId "24197866"]
[BlackFideId "14120828"]
[WhiteElo "2212"]
[BlackElo "2734"]
[Result "1/2-1/2"]
[Round "08"]
[TimeControl "180+2"]
[Date "2023.04.18"]
[WhiteClock "0:00:35"]
[BlackClock "0:00:23"]

1. e4 {[%clk 0:03:00]}  Nf6 {[%clk 0:02:54]} 2. Nc3 {[%clk 0:03:00]}  d5 {[%clk 0:02:53]} 3. exd5 {[%clk 0:03:00]}  Nxd5 {[%clk 0:02:53]} 4. g3 {[%clk 0:03:01]}  g6 {[%clk 0:02:52]} 5. Bg2 {[%clk 0:03:01]}  c6 {[%clk 0:02:53]} 6. Nge2 {[%clk 0:03:01]}  Bg7 {[%clk 0:02:48]} 7. O-O {[%clk 0:03:02]}  O-O {[%clk 0:02:48]} 8. Nxd5 {[%clk 0:03:02]}  cxd5 {[%clk 0:02:49]} 9. d4 {[%clk 0:03:02]}  Nc6 {[%clk 0:02:48]} 10. c3 {[%clk 0:03:03]}  Bf5 {[%clk 0:02:48]} 11. h3 {[%clk 0:03:03]}  h5 {[%clk 0:02:47]} 12. Nf4 {[%clk 0:03:03]}  Be4 {[%clk 0:02:44]} 13. f3 {[%clk 0:03:02]}  Bf5 {[%clk 0:02:43]} 14. g4 {[%clk 0:03:02]}  hxg4 {[%clk 0:02:41]} 15. hxg4 {[%clk 0:02:23]}  Bc8 {[%clk 0:02:40]} 16. Nd3 {[%clk 0:02:21]}  e5 {[%clk 0:02:39]} 17. dxe5 {[%clk 0:02:21]}  Nxe5 {[%clk 0:02:39]} 18. Nxe5 {[%clk 0:02:20]}  Bxe5 {[%clk 0:02:38]} 19. Qe1 {[%clk 0:02:15]}  Re8 {[%clk 0:02:28]} 20. Qf2 {[%clk 0:02:04]}  d4 {[%clk 0:02:28]} 21. Bd2 {[%clk 0:01:59]}  Qd6 {[%clk 0:02:24]} 22. Rae1 {[%clk 0:01:56]}  Bd7 {[%clk 0:02:24]} 23. Rxe5 {[%clk 0:01:46]}  Qxe5 {[%clk 0:02:21]} 24. cxd4 {[%clk 0:01:42]}  Qe2 {[%clk 0:02:21]} 25. d5 {[%clk 0:01:40]}  Qxf2+ {[%clk 0:02:19]} 26. Kxf2 {[%clk 0:01:40]}  Bb5 {[%clk 0:02:18]} 27. Re1 {[%clk 0:01:40]}  Rxe1 {[%clk 0:02:17]} 28. Bxe1 {[%clk 0:01:40]}  Bc4 {[%clk 0:02:16]} 29. d6 {[%clk 0:01:37]}  Bxa2 {[%clk 0:02:15]} 30. f4 {[%clk 0:01:37]}  Rd8 {[%clk 0:02:13]} 31. Bb4 {[%clk 0:01:32]}  b6 {[%clk 0:02:12]} 32. Ke3 {[%clk 0:01:29]}  f6 {[%clk 0:01:33]} 33. f5 {[%clk 0:01:22]}  gxf5 {[%clk 0:01:31]} 34. gxf5 {[%clk 0:01:23]}  Kf7 {[%clk 0:01:32]} 35. Bc6 {[%clk 0:01:24]}  Bb1 {[%clk 0:00:35]} 36. Bd5+ {[%clk 0:01:11]}  Kg7 {[%clk 0:00:25]} 37. Be6 {[%clk 0:01:12]}  Bc2 {[%clk 0:00:23]} 38. d7 {[%clk 0:00:44]}  Ba4 {[%clk 0:00:22]} 39. Be7 {[%clk 0:00:45]}  Rxd7 {[%clk 0:00:23]} 40. Bxd7 {[%clk 0:00:45]}  Bxd7 {[%clk 0:00:24]} 41. Kf4 {[%clk 0:00:44]}  Kf7 {[%clk 0:00:24]} 42. Bd6 {[%clk 0:00:43]}  Bc6 {[%clk 0:00:21]} 43. Bb8 {[%clk 0:00:41]}  a6 {[%clk 0:00:21]} 44. Ba7 {[%clk 0:00:42]}  b5 {[%clk 0:00:22]} 45. b4 {[%clk 0:00:43]}  Bd5 {[%clk 0:00:22]} 46. Bc5 {[%clk 0:00:42]}  Bc4 {[%clk 0:00:22]} 47. Bd4 {[%clk 0:00:42]}  Ba2 {[%clk 0:00:23]} 48. Bc3 {[%clk 0:00:42]}  Bb1 {[%clk 0:00:24]} 49. Bd4 {[%clk 0:00:43]}  Bc2 {[%clk 0:00:25]} 50. Bc3 {[%clk 0:00:43]}  Bb3 {[%clk 0:00:26]} 51. Bd4 {[%clk 0:00:43]}  Ba2 {[%clk 0:00:27]} 52. Bc3 {[%clk 0:00:44]}  Bb1 {[%clk 0:00:28]} 53. Bd4 {[%clk 0:00:44]}  Ke7 {[%clk 0:00:29]} 54. Bc3 {[%clk 0:00:45]}  Bc2 {[%clk 0:00:30]} 55. Bd4 {[%clk 0:00:45]}  Bd3 {[%clk 0:00:30]} 56. Bc3 {[%clk 0:00:45]}  Bc2 {[%clk 0:00:15]} 57. Bd4 {[%clk 0:00:45]}  Bb1 {[%clk 0:00:14]} 58. Bc3 {[%clk 0:00:46]}  Bd3 {[%clk 0:00:14]} 59. Bd4 {[%clk 0:00:46]}  a5 {[%clk 0:00:15]} 60. bxa5 {[%clk 0:00:43]}  Kd7 {[%clk 0:00:15]} 61. Bxf6 {[%clk 0:00:39]}  Kc6 {[%clk 0:00:14]} 62. Bc3 {[%clk 0:00:32]}  b4 {[%clk 0:00:15]} 63. Bxb4 {[%clk 0:00:32]}  Bxf5 {[%clk 0:00:15]} 64. Kxf5 {[%clk 0:00:32]}  Kb7 {[%clk 0:00:16]} 65. Ke6 {[%clk 0:00:32]}  Ka8 {[%clk 0:00:17]} 66. Kd7 {[%clk 0:00:33]}  Kb8 {[%clk 0:00:18]} 67. Kc6 {[%clk 0:00:32]}  Ka8 {[%clk 0:00:18]} 68. Bd6 {[%clk 0:00:32]}  Ka7 {[%clk 0:00:19]} 69. Kb5 {[%clk 0:00:33]}  Ka8 {[%clk 0:00:20]} 70. a6 {[%clk 0:00:34]}  Ka7 {[%clk 0:00:21]} 71. Bb8+ {[%clk 0:00:34]}  Ka8 {[%clk 0:00:22]} 72. a7 {[%clk 0:00:34]}  Kb7 {[%clk 0:00:22]} 73. Kc5 {[%clk 0:00:34]}  Ka8 {[%clk 0:00:23]} 74. Kc6 {[%clk 0:00:35]} 1/2-1/2


[Site "https://www.chess.com"]

[Event "Titled Tuesday Blitz April 18 Late 2023"]
[White "Sadhwani, Raunak"]
[Black "Timmermans, Mark"]
[WhiteFideId "35093487"]
[BlackFideId "1026399"]
[WhiteElo "2631"]
[BlackElo "2460"]
[Result "1-0"]
[Round "08"]
[TimeControl "180+2"]
[Date "2023.04.18"]
[WhiteClock "0:02:28"]
[BlackClock "0:02:08"]

1. Nf3 {[%clk 0:03:00]}  Nf6 {[%clk 0:02:59]} 2. b3 {[%clk 0:03:01]}  d5 {[%clk 0:02:55]} 3. Bb2 {[%clk 0:03:02]}  c5 {[%clk 0:02:47]} 4. e3 {[%clk 0:02:58]}  Nc6 {[%clk 0:02:46]} 5. Bb5 {[%clk 0:02:57]}  e6 {[%clk 0:02:39]} 6. Bxc6+ {[%clk 0:02:54]}  bxc6 {[%clk 0:02:39]} 7. O-O {[%clk 0:02:55]}  Be7 {[%clk 0:02:35]} 8. d3 {[%clk 0:02:54]}  a5 {[%clk 0:02:35]} 9. c4 {[%clk 0:02:51]}  a4 {[%clk 0:02:35]} 10. Nc3 {[%clk 0:02:48]}  axb3 {[%clk 0:02:34]} 11. axb3 {[%clk 0:02:49]}  Rxa1 {[%clk 0:02:34]} 12. Bxa1 {[%clk 0:02:45]}  O-O {[%clk 0:02:35]} 13. Na4 {[%clk 0:02:45]}  Nd7 {[%clk 0:02:29]} 14. Ne5 {[%clk 0:02:44]}  Nxe5 {[%clk 0:02:23]} 15. Bxe5 {[%clk 0:02:45]}  d4 {[%clk 0:02:24]} 16. e4 {[%clk 0:02:38]}  Bd7 {[%clk 0:02:13]} 17. Qc2 {[%clk 0:02:33]}  Qa5 {[%clk 0:02:13]} 18. Bf4 {[%clk 0:02:28]}  Rb8 {[%clk 0:02:08]} 19. Bxb8 {[%clk 0:02:28]} 1-0


[Site "https://www.chess.com"]

[Event "Titled Tuesday Blitz April 18 Late 2023"]
[White "Makridis, Dimitrios"]
[Black "Svane, Frederik"]
[WhiteFideId "25864475"]
[BlackFideId "12923044"]
[WhiteElo "2277"]
[BlackElo "2502"]
[Result "0-1"]
[Round "08"]
[TimeControl "180+2"]
[Date "2023.04.18"]
[WhiteClock "0:00:04"]
[BlackClock "0:01:29"]

1. e4 {[%clk 0:03:00]}  e6 {[%clk 0:03:00]} 2. d4 {[%clk 0:03:00]}  d5 {[%clk 0:03:01]} 3. Nc3 {[%clk 0:03:00]}  Nf6 {[%clk 0:03:01]} 4. e5 {[%clk 0:03:00]}  Nfd7 {[%clk 0:03:01]} 5. f4 {[%clk 0:03:01]}  c5 {[%clk 0:03:01]} 6. Nf3 {[%clk 0:03:02]}  Nc6 {[%clk 0:03:02]} 7. Be3 {[%clk 0:03:00]}  a6 {[%clk 0:03:02]} 8. Qd2 {[%clk 0:02:59]}  b5 {[%clk 0:02:58]} 9. Be2 {[%clk 0:02:59]}  Qb6 {[%clk 0:02:56]} 10. O-O {[%clk 0:02:57]}  cxd4 {[%clk 0:02:53]} 11. Nxd4 {[%clk 0:02:56]}  Bc5 {[%clk 0:02:52]} 12. Rad1 {[%clk 0:02:49]}  Nxd4 {[%clk 0:02:50]} 13. Bxd4 {[%clk 0:02:49]}  Bb7 {[%clk 0:02:43]} 14. Kh1 {[%clk 0:02:45]}  Bxd4 {[%clk 0:02:40]} 15. Qxd4 {[%clk 0:02:46]}  b4 {[%clk 0:02:40]} 16. Na4 {[%clk 0:02:39]}  Qxd4 {[%clk 0:02:40]} 17. Rxd4 {[%clk 0:02:40]}  a5 {[%clk 0:02:41]} 18. Bb5 {[%clk 0:02:14]}  Ba6 {[%clk 0:02:41]} 19. Bxa6 {[%clk 0:02:12]}  Rxa6 {[%clk 0:02:42]} 20. Ra1 {[%clk 0:01:52]}  Rc6 {[%clk 0:02:38]} 21. Rd2 {[%clk 0:01:52]}  g5 {[%clk 0:02:34]} 22. fxg5 {[%clk 0:01:38]}  Nxe5 {[%clk 0:02:33]} 23. b3 {[%clk 0:01:31]}  Ke7 {[%clk 0:02:32]} 24. a3 {[%clk 0:01:29]}  Rhc8 {[%clk 0:02:28]} 25. axb4 {[%clk 0:01:28]}  axb4 {[%clk 0:02:29]} 26. Ra2 {[%clk 0:01:17]}  Kd6 {[%clk 0:02:28]} 27. Kg1 {[%clk 0:01:16]}  Ng4 {[%clk 0:02:26]} 28. Re2 {[%clk 0:01:12]}  d4 {[%clk 0:02:17]} 29. Re4 {[%clk 0:01:03]}  Ne3 {[%clk 0:01:50]} 30. Rxd4+ {[%clk 0:01:02]}  Ke5 {[%clk 0:01:51]} 31. Rd3 {[%clk 0:00:26]}  Ke4 {[%clk 0:01:50]} 32. Rd2 {[%clk 0:00:06]}  Rxc2 {[%clk 0:01:50]} 33. Raxc2 {[%clk 0:00:04]}  Rxc2 {[%clk 0:01:51]} 34. Rxc2 {[%clk 0:00:05]}  Nxc2 {[%clk 0:01:52]} 35. Nc5+ {[%clk 0:00:05]}  Kd4 {[%clk 0:01:50]} 36. Nd7 {[%clk 0:00:06]}  Na1 {[%clk 0:01:49]} 37. Kf2 {[%clk 0:00:04]}  Nxb3 {[%clk 0:01:49]} 38. Ke2 {[%clk 0:00:05]}  Nc5 {[%clk 0:01:45]} 39. Nf6 {[%clk 0:00:05]}  b3 {[%clk 0:01:42]} 40. Kd1 {[%clk 0:00:06]}  Ne4 {[%clk 0:01:31]} 41. Nxh7 {[%clk 0:00:05]}  Kc3 {[%clk 0:01:31]} 42. Nf6 {[%clk 0:00:03]}  Nxf6 {[%clk 0:01:29]} 43. gxf6 {[%clk 0:00:04]}  b2 {[%clk 0:01:29]} 0-1


[Site "https://www.chess.com"]

[Event "Titled Tuesday Blitz April 18 Late 2023"]
[White "Durarbayli, Vasif"]
[Black "Bilych, Olexiy"]
[WhiteFideId "13402935"]
[BlackFideId "14156504"]
[WhiteElo "2551"]
[BlackElo "2320"]
[Result "1-0"]
[Round "08"]
[TimeControl "180+2"]
[Date "2023.04.18"]
[WhiteClock "0:00:05"]
[BlackClock "0:00:03"]

1. e4 {[%clk 0:03:00]}  c5 {[%clk 0:02:59]} 2. Nf3 {[%clk 0:03:00]}  d6 {[%clk 0:02:57]} 3. d4 {[%clk 0:03:00]}  cxd4 {[%clk 0:02:58]} 4. Nxd4 {[%clk 0:03:00]}  Nf6 {[%clk 0:02:58]} 5. Nc3 {[%clk 0:03:01]}  a6 {[%clk 0:02:58]} 6. Be2 {[%clk 0:03:01]}  e5 {[%clk 0:02:56]} 7. Nb3 {[%clk 0:03:02]}  Be7 {[%clk 0:02:55]} 8. Be3 {[%clk 0:03:02]}  Be6 {[%clk 0:02:53]} 9. O-O {[%clk 0:03:02]}  O-O {[%clk 0:02:47]} 10. Re1 {[%clk 0:03:00]}  Nbd7 {[%clk 0:02:43]} 11. a4 {[%clk 0:02:59]}  Nb6 {[%clk 0:02:36]} 12. a5 {[%clk 0:02:57]}  Nc4 {[%clk 0:02:36]} 13. Bxc4 {[%clk 0:02:55]}  Bxc4 {[%clk 0:02:37]} 14. Nc1 {[%clk 0:02:47]}  Rc8 {[%clk 0:02:33]} 15. Nd3 {[%clk 0:02:47]}  Be6 {[%clk 0:02:24]} 16. Nb4 {[%clk 0:02:42]}  Rc4 {[%clk 0:02:12]} 17. Nbd5 {[%clk 0:02:36]}  Nxd5 {[%clk 0:02:00]} 18. Nxd5 {[%clk 0:02:20]}  Rxe4 {[%clk 0:01:58]} 19. b3 {[%clk 0:01:53]}  Bg5 {[%clk 0:01:55]} 20. Qd3 {[%clk 0:01:45]}  f5 {[%clk 0:01:48]} 21. Nc3 {[%clk 0:01:25]}  Bxe3 {[%clk 0:01:13]} 22. Nxe4 {[%clk 0:01:23]}  Bd4 {[%clk 0:01:13]} 23. Nd2 {[%clk 0:00:55]}  Bxa1 {[%clk 0:01:11]} 24. Rxa1 {[%clk 0:00:56]}  Qc7 {[%clk 0:01:08]} 25. c4 {[%clk 0:00:56]}  Qc5 {[%clk 0:01:05]} 26. Qc3 {[%clk 0:00:55]}  Bd7 {[%clk 0:00:52]} 27. Rd1 {[%clk 0:00:51]}  Qc7 {[%clk 0:00:37]} 28. Nf1 {[%clk 0:00:47]}  Bc6 {[%clk 0:00:36]} 29. Qb4 {[%clk 0:00:47]}  Rf6 {[%clk 0:00:34]} 30. f3 {[%clk 0:00:47]}  f4 {[%clk 0:00:32]} 31. Nd2 {[%clk 0:00:44]}  Rg6 {[%clk 0:00:30]} 32. Qb6 {[%clk 0:00:37]}  Qe7 {[%clk 0:00:24]} 33. b4 {[%clk 0:00:34]}  Qg5 {[%clk 0:00:19]} 34. Qf2 {[%clk 0:00:34]}  h5 {[%clk 0:00:18]} 35. Rb1 {[%clk 0:00:33]}  h4 {[%clk 0:00:09]} 36. b5 {[%clk 0:00:34]}  Bd7 {[%clk 0:00:08]} 37. Ne4 {[%clk 0:00:24]}  Qd8 {[%clk 0:00:06]} 38. bxa6 {[%clk 0:00:15]}  bxa6 {[%clk 0:00:07]} 39. Qb6 {[%clk 0:00:15]}  Qf8 {[%clk 0:00:03]} 40. Kf2 {[%clk 0:00:14]}  h3 {[%clk 0:00:04]} 41. g3 {[%clk 0:00:11]}  fxg3+ {[%clk 0:00:04]} 42. hxg3 {[%clk 0:00:12]}  Bg4 {[%clk 0:00:04]} 43. Qb8 {[%clk 0:00:12]}  h2 {[%clk 0:00:01]} 44. Qxf8+ {[%clk 0:00:12]}  Kxf8 {[%clk 0:00:02]} 45. fxg4 {[%clk 0:00:12]}  Rxg4 {[%clk 0:00:03]} 46. Kf3 {[%clk 0:00:12]}  Rg6 {[%clk 0:00:03]} 47. Rh1 {[%clk 0:00:13]}  Rh6 {[%clk 0:00:03]} 48. Kg2 {[%clk 0:00:12]}  Ke7 {[%clk 0:00:03]} 49. Nc3 {[%clk 0:00:11]}  Rg6 {[%clk 0:00:01]} 50. Nd5+ {[%clk 0:00:10]}  Ke6 {[%clk 0:00:01]} 51. Rxh2 {[%clk 0:00:11]}  Rg4 {[%clk 0:00:02]} 52. Ne3 {[%clk 0:00:11]}  Rd4 {[%clk 0:00:02]} 53. Kf3 {[%clk 0:00:11]}  Rd3 {[%clk 0:00:02]} 54. Ra2 {[%clk 0:00:09]}  Rc3 {[%clk 0:00:02]} 55. Ke4 {[%clk 0:00:09]}  g6 {[%clk 0:00:02]} 56. g4 {[%clk 0:00:10]}  Rc1 {[%clk 0:00:01]} 57. Ra3 {[%clk 0:00:10]}  Rd1 {[%clk 0:00:02]} 58. Rb3 {[%clk 0:00:06]}  Rd4+ {[%clk 0:00:02]} 59. Kf3 {[%clk 0:00:06]}  Rf4+ {[%clk 0:00:03]} 60. Ke2 {[%clk 0:00:06]}  g5 {[%clk 0:00:02]} 61. Rb6 {[%clk 0:00:07]}  Rf8 {[%clk 0:00:01]} 62. Rxa6 {[%clk 0:00:06]}  Rc8 {[%clk 0:00:02]} 63. Kd3 {[%clk 0:00:05]}  Rc5 {[%clk 0:00:02]} 64. Nf5 {[%clk 0:00:05]}  e4+ {[%clk 0:00:02]} 65. Kd4 {[%clk 0:00:05]}  e3 {[%clk 0:00:03]} 66. Rxd6+ {[%clk 0:00:05]}  Kf7 {[%clk 0:00:03]} 1-0


[Site "https://www.chess.com"]

[Event "Titled Tuesday Blitz April 18 Late 2023"]
[White "Mihajlov, Sebastian"]
[Black "Ibrahimli, Murad"]
[WhiteFideId "1512110"]
[BlackFideId "13410229"]
[WhiteElo "2478"]
[BlackElo "2364"]
[Result "0-1"]
[Round "08"]
[TimeControl "180+2"]
[Date "2023.04.18"]
[WhiteClock "0:00:42"]
[BlackClock "0:01:25"]

1. e4 {[%clk 0:03:00]}  c5 {[%clk 0:02:59]} 2. Nf3 {[%clk 0:03:01]}  a6 {[%clk 0:02:59]} 3. d4 {[%clk 0:03:02]}  cxd4 {[%clk 0:02:59]} 4. Qxd4 {[%clk 0:02:57]}  Nc6 {[%clk 0:02:58]} 5. Qd1 {[%clk 0:02:57]}  Nf6 {[%clk 0:02:57]} 6. Nc3 {[%clk 0:02:58]}  d6 {[%clk 0:02:57]} 7. Bg5 {[%clk 0:02:54]}  Bg4 {[%clk 0:02:52]} 8. h3 {[%clk 0:02:50]}  Bh5 {[%clk 0:02:52]} 9. g4 {[%clk 0:02:49]}  Bg6 {[%clk 0:02:51]} 10. Bd3 {[%clk 0:02:49]}  e6 {[%clk 0:02:48]} 11. Qe2 {[%clk 0:02:48]}  Be7 {[%clk 0:02:47]} 12. h4 {[%clk 0:02:41]}  h5 {[%clk 0:02:44]} 13. Bxf6 {[%clk 0:02:41]}  gxf6 {[%clk 0:02:45]} 14. gxh5 {[%clk 0:02:10]}  Bxh5 {[%clk 0:02:45]} 15. Qe3 {[%clk 0:02:10]}  Bf8 {[%clk 0:02:36]} 16. Nd4 {[%clk 0:01:55]}  Qb6 {[%clk 0:02:34]} 17. Nxc6 {[%clk 0:01:53]}  Qxe3+ {[%clk 0:02:33]} 18. fxe3 {[%clk 0:01:53]}  bxc6 {[%clk 0:02:34]} 19. Kd2 {[%clk 0:01:50]}  a5 {[%clk 0:02:30]} 20. Ne2 {[%clk 0:01:50]}  Rb8 {[%clk 0:02:17]} 21. b3 {[%clk 0:01:50]}  d5 {[%clk 0:02:08]} 22. Raf1 {[%clk 0:01:36]}  Be7 {[%clk 0:02:00]} 23. Nd4 {[%clk 0:01:28]}  Kd7 {[%clk 0:01:58]} 24. exd5 {[%clk 0:01:27]}  cxd5 {[%clk 0:01:58]} 25. a4 {[%clk 0:01:02]}  Rbg8 {[%clk 0:01:43]} 26. Bb5+ {[%clk 0:01:00]}  Kd6 {[%clk 0:01:43]} 27. Nc6 {[%clk 0:01:00]}  Rg2+ {[%clk 0:01:39]} 28. Kc3 {[%clk 0:00:57]}  Rc8 {[%clk 0:01:39]} 29. e4 {[%clk 0:00:44]}  Rxc6+ {[%clk 0:01:30]} 30. Bxc6 {[%clk 0:00:45]}  Kxc6 {[%clk 0:01:31]} 31. exd5+ {[%clk 0:00:46]}  Kxd5 {[%clk 0:01:31]} 32. Rh3 {[%clk 0:00:44]}  f5 {[%clk 0:01:27]} 33. Rd3+ {[%clk 0:00:43]}  Kc6 {[%clk 0:01:27]} 34. Rf4 {[%clk 0:00:42]}  Bf6+ {[%clk 0:01:25]} 0-1


[Site "https://www.chess.com"]